bitfinex-derivatives/quotes_SOLF0:USTF0_20250109
["timestamp","ask_amount","ask_price","bid_price","bid_amount"]
[1736440761119,2.6158,191.2,191.13,13.15125318]
[1736440761320,14.66335318,191.26,191.13,13.15125318]
[1736440761521,1.5121,191.26,191.16,13.15125318]
[1736440762224,2.6152,191.24,191.2,2.6156]
[1736440762720,2.6153,191.23,191.2,2.6156]
[1736440763424,2.6153,191.23,191.18,2.6158]
[1736440763625,2.6151,191.24,191.16,21.0133298]
[1736440763822,1.5906,191.3,191.16,21.0133298]
[1736440764124,21.0133298,191.29,191.16,21.0133298]
[1736440764420,21.0133298,191.29,191.13,21.0133298]
[1736440764625,2.6156,191.21,191.16,2.6161]
[1736440764929,21.0133298,191.29,191.14,1.6362]
[1736440765823,2.6152,191.24,191.19,2.6158]
[1736440766020,3.1437,191.3,191.16,21.0133298]
[1736440766247,2.6147,191.27,191.22,2.6153]
[1736440767026,2.6147,191.27,191.23,2.6152]
[1736440767726,2.6147,191.27,191.14,1.6362]
[1736440767727,142.01101735,191.41,191.25,21.0133298]
[1736440767932,2.6139,191.33,191.25,21.0133298]
[1736440768526,2.6138,191.34,191.25,21.0133298]
[1736440768927,21.0133298,191.42,191.28,21.0133298]
[1736440769228,1.5666,191.41,191.31,2.6141]
[1736440769424,1.5666,191.41,191.28,21.0133298]
[1736440769827,2.6135,191.36,191.28,21.0133298]
[1736440770227,2.6134,191.37,191.31,2.614]
[1736440770469,1.5666,191.41,191.31,21.0133298]
[1736440770828,2.6133,191.38,191.33,2.6138]
[1736440771225,2.6133,191.38,191.31,21.0133298]
[1736440771226,1.5666,191.41,191.31,21.0133298]
[1736440771532,2.6131,191.39,191.34,2.6137]
[1736440772419,2.6131,191.39,191.35,2.6136]
[1736440772624,1.4852,191.46,191.33,1.5885]
[1736440772821,1.4852,191.46,191.36,2.6135]
[1736440773732,2.6133,191.37,191.33,4.2024]
[1736440774030,1.4852,191.46,191.33,1.5885]
[1736440774338,1.4852,191.46,191.34,21.0133298]
[1736440774786,1.4852,191.46,191.34,25.9333298]
[1736440774933,2.6128,191.41,191.34,25.9333298]
[1736440775229,1.4852,191.46,191.34,25.9333298]
[1736440775873,1.6091,191.47,191.37,21.0133298]
[1736440775874,2.6126,191.43,191.37,21.0133298]
[1736440776429,2.6124,191.45,191.4,2.6129]
[1736440776630,1.6091,191.47,191.37,21.0133298]
[1736440776931,2.6125,191.44,191.39,2.6129]
[1736440777128,2.6125,191.44,191.37,21.0133298]
[1736440777129,1.5694,191.5,191.37,21.0133298]
[1736440777631,21.0133298,191.49,191.34,25.9333298]
[1736440778031,21.0133298,191.49,191.34,4.92]
[1736440778235,2.6123,191.45,191.35,2.6136]
[1736440778428,21.0133298,191.49,191.34,4.92]
[1736440778629,21.0133298,191.49,191.33,3.0791]
[1736440779134,21.0133298,191.49,191.36,2.6134]
[1736440779431,21.0133298,191.46,191.33,1.5885]
[1736440779633,1.4792,191.45,191.33,1.5885]
[1736440780136,2.6132,191.39,191.34,2.6137]
[1736440781432,2.6133,191.38,191.33,2.6139]
[1736440781629,1.6276,191.44,191.32,1.4819]
[1736440781834,21.0133298,191.43,191.28,21.0133298]
[1736440782233,21.0133298,191.4,191.27,3.1238]
[1736440782634,2.6144,191.29,191.26,9.69431236]
[1736440783337,2.6147,191.28,191.24,7.5351]
[1736440784134,2.6147,191.28,191.25,2.615]
[1736440784438,2.6145,191.29,191.25,2.615]
[1736440785639,1.5405,191.35,191.26,2.6148]
[1736440786137,1.5405,191.35,191.24,4.92]
[1736440786537,1.5405,191.35,191.24,25.9333298]
[1736440787137,2.6142,191.31,191.27,2.6147]
[1736440788439,1.5405,191.35,191.26,13.12249806]
[1736440789140,2.6144,191.3,191.26,13.12249806]
[1736440789330,1.5405,191.35,191.26,13.12249806]
[1736440790129,13.12249806,191.38,191.26,13.12249806]
[1736440790540,2.6139,191.33,191.26,13.12249806]
[1736440791641,2.6139,191.33,191.29,2.6143]
[1736440791840,2.6138,191.34,191.26,13.12249806]
[1736440792545,2.6136,191.36,191.29,13.12249806]
[1736440793142,2.6136,191.36,191.32,2.614]
[1736440795148,2.6133,191.38,191.32,13.12249806]
[1736440795443,1.6172,191.41,191.32,13.12249806]
[1736440795749,2.6132,191.39,191.35,2.6135]
[1736440796744,1.5794,191.42,191.29,13.12249806]
[1736440796939,13.12249806,191.41,191.29,13.12249806]
[1736440797143,14.61639806,191.41,191.29,13.12249806]
[1736440797345,1.4805,191.4,191.29,13.12249806]
[1736440797548,13.12249806,191.38,191.26,16.29939806]
[1736440797745,2.6137,191.35,191.29,2.6144]
[1736440797947,13.12249806,191.38,191.29,2.6144]
[1736440798449,2.614,191.33,191.29,2.6144]
[1736440799147,2.6138,191.34,191.3,2.6142]
[1736440799354,1.4805,191.4,191.29,13.12249806]
[1736440800242,13.12249806,191.38,191.26,16.29939806]
[1736440800447,18.04249806,191.38,191.26,1.5486]
[1736440800647,13.12249806,191.35,191.26,1.5486]
[1736440801149,13.12249806,191.35,191.27,2.6147]
[1736440801751,2.6139,191.33,191.27,2.6147]
[1736440801954,13.12249806,191.35,191.27,2.6147]
[1736440802150,18.04249806,191.38,191.26,1.5486]
[1736440802349,2.6144,191.3,191.26,2.6148]
[1736440803255,18.04249806,191.38,191.26,13.12249806]
[1736440803755,2.6138,191.34,191.3,2.6142]
[1736440804345,18.04249806,191.38,191.26,13.12249806]
[1736440804554,4.92,191.38,191.29,13.12249806]
[1736440804752,42.226931,191.44,191.32,13.12249806]
[1736440804955,2.6132,191.39,191.35,2.6136]
[1736440805154,13.12249806,191.44,191.35,2.6136]
[1736440805672,2.6133,191.38,191.34,2.6136]
[1736440805857,13.12249806,191.44,191.32,13.12249806]
[1736440806169,13.12249806,191.44,191.35,2.6136]
[1736440806366,13.12249806,191.44,191.32,13.12249806]
[1736440806657,13.12249806,191.44,191.29,18.04249806]
[1736440806861,13.12249806,191.41,191.29,18.04249806]
[1736440807856,13.12249806,191.41,191.31,2.6141]
[1736440808055,13.12249806,191.41,191.29,13.12249806]
[1736440808261,2.6142,191.31,191.27,2.6146]
[1736440808574,13.12249806,191.38,191.27,2.6146]
[1736440808759,13.12249806,191.38,191.26,2.6148]
[1736440808760,2.6145,191.29,191.26,2.6148]
[1736440808956,2.6145,191.29,191.23,75.46635117]
[1736440809556,2.6145,191.29,191.25,2.6149]
[1736440809899,2.6143,191.3,191.23,75.46635117]
[1736440810459,2.6143,191.3,191.25,2.615]
[1736440811063,2.6143,191.3,191.23,75.46635117]
[1736440811262,2.6142,191.32,191.23,75.46635117]
[1736440811459,2.6142,191.32,191.26,13.12249806]
[1736440812362,2.6142,191.32,191.28,2.6145]
[1736440813356,1.6156,191.34,191.26,13.12249806]
[1736440813566,1.6156,191.34,191.23,75.46635117]
[1736440813866,14.73809806,191.34,191.23,76.56235117]
[1736440814162,13.12249806,191.31,191.2,13.12249806]
[1736440814465,2.6145,191.29,191.23,2.6152]
[1736440814659,13.12249806,191.31,191.23,2.6152]
[1736440815560,2.6148,191.27,191.23,2.6152]
[1736440815974,13.12249806,191.31,191.23,2.6152]
[1736440816165,2.6148,191.27,191.23,2.6152]
[1736440816668,13.12249806,191.31,191.23,2.6152]
[1736440816867,13.12249806,191.31,191.2,13.12249806]
[1736440816868,13.12249806,191.31,191.17,13.12249806]
[1736440817070,13.12249806,191.28,191.17,13.12249806]
[1736440817260,2.6154,191.23,191.17,13.12249806]
[1736440817463,2.6154,191.23,191.19,2.6158]
[1736440818588,2.6154,191.23,191.18,2.6158]
[1736440818760,2.6154,191.23,191.17,13.12249806]
[1736440819172,2.6154,191.23,191.19,2.6157]
[1736440820068,13.12249806,191.28,191.18,2.6159]
[1736440820268,1.6076,191.27,191.15,1.5987]
[1736440820471,1.6076,191.27,191.17,13.12249806]
[1736440820770,2.6151,191.25,191.2,2.6157]
[1736440820972,1.6076,191.27,191.2,2.6157]
[1736440821773,1.6076,191.27,191.17,13.12249806]
[1736440821977,1.612,191.26,191.17,13.12249806]
[1736440822469,2.6154,191.22,191.19,2.6158]
[1736440823072,1.612,191.26,191.17,13.12249806]
[1736440823279,2.6156,191.21,191.18,2.6159]
[1736440823979,2.6154,191.22,191.18,2.6159]
[1736440824781,2.6151,191.24,191.17,13.12249806]
[1736440826074,2.6151,191.24,191.21,2.6154]
[1736440826304,1.612,191.26,191.2,13.12249806]
[1736440826305,2.6149,191.26,191.2,13.12249806]
[1736440826578,4.92,191.33,191.24,2.615]
[1736440826778,2.615,191.25,191.15,1.5987]
[1736440826979,13.12249806,191.31,191.17,13.12249806]
[1736440827374,2.6151,191.25,191.21,2.6155]
[1736440828673,2.6151,191.25,191.22,2.6154]
[1736440828972,13.12249806,191.31,191.2,13.12249806]
[1736440829168,13.12249806,191.31,191.17,13.12249806]
[1736440829376,13.12249806,191.28,191.17,13.12249806]
[1736440829679,2.6155,191.22,191.18,2.6158]
[1736440829879,1.6024,191.27,191.15,1.5987]
[1736440830074,3.2205,191.27,191.15,1.5987]
[1736440831478,3.2205,191.27,191.19,2.6157]
[1736440831479,2.6152,191.24,191.19,2.6157]
[1736440831680,3.2205,191.27,191.19,2.6157]
[1736440832179,2.6154,191.23,191.19,2.6157]
[1736440832375,3.2205,191.27,191.19,2.6157]
[1736440832581,3.2205,191.27,191.15,1.5987]
[1736440832774,2.6157,191.21,191.15,1.5987]
[1736440833684,2.6157,191.21,191.17,2.616]
[1736440834775,3.2205,191.27,191.17,2.616]
[1736440835080,13.12249806,191.25,191.15,1.5987]
[1736440835382,13.12249806,191.25,191.16,2.6162]
[1736440836085,2.6158,191.2,191.16,2.6162]
[1736440836973,13.12249806,191.25,191.11,13.12249806]
[1736440837280,13.12249806,191.22,191.11,13.12249806]
[1736440837476,13.12249806,191.22,191.14,2.6164]
[1736440837477,2.6158,191.19,191.14,2.6164]
[1736440837677,13.12249806,191.25,191.11,13.12249806]
[1736440837880,13.12249806,191.25,191.09,12.70058988]
[1736440837881,4.92,191.26,191.14,13.12249806]
[1736440838281,3.2205,191.27,191.14,13.12249806]
[1736440839179,4.7818,191.27,191.14,13.12249806]
[1736440839385,2.6159,191.19,191.15,2.6163]
[1736440839778,2.6159,191.19,191.14,13.12249806]
[1736440840474,4.7818,191.27,191.14,13.12249806]
[1736440840673,4.7818,191.27,191.09,12.70058988]
[1736440840873,13.12249806,191.22,191.13,2.6166]
[1736440841078,13.12249806,191.22,191.09,12.70058988]
[1736440841280,13.12249806,191.19,191.09,12.70058988]
[1736440841580,13.12249806,191.19,191.12,2.6167]
[1736440841581,2.6162,191.16,191.12,2.6167]
[1736440841885,13.12249806,191.22,191.09,12.70058988]
[1736440842085,2.6159,191.19,191.13,2.6166]
[1736440842299,4.7818,191.27,191.17,13.12249806]
[1736440842481,4.7818,191.27,191.2,13.12249806]
[1736440842781,2.6151,191.25,191.2,13.12249806]
[1736440842977,3.2205,191.27,191.2,13.12249806]
[1736440843585,2.615,191.25,191.21,2.6154]
[1736440843786,3.2205,191.27,191.17,13.12249806]
[1736440844590,2.6151,191.24,191.19,2.6158]
[1736440844991,2.6153,191.23,191.19,2.6158]
[1736440846197,2.615,191.25,191.19,2.6158]
[1736440846388,3.2205,191.27,191.19,2.6158]
[1736440847092,2.6154,191.22,191.19,2.6158]
[1736440847390,2.6154,191.22,191.17,13.12249806]
[1736440847391,13.12249806,191.26,191.16,2.6162]
[1736440847595,13.12249806,191.26,191.14,13.12249806]
[1736440847785,2.6156,191.21,191.14,13.12249806]
[1736440848282,2.6156,191.21,191.17,2.6161]
[1736440849993,2.6156,191.21,191.18,2.6159]
[1736440850592,2.6157,191.2,191.17,2.6161]
[1736440852591,3.2205,191.27,191.14,13.12249806]
[1736440852791,2.6153,191.23,191.14,13.12249806]
[1736440853199,2.6153,191.23,191.19,2.6157]
[1736440853893,2.6154,191.22,191.19,2.6157]
[1736440854299,3.2205,191.27,191.17,2.616]
[1736440854500,13.12249806,191.26,191.14,13.12249806]
[1736440855001,2.6162,191.16,191.13,2.6166]
[1736440855199,13.12249806,191.2,191.08,13.12249806]
[1736440855497,2.6166,191.14,191.1,2.617]
[1736440855694,2.6166,191.14,191.08,13.12249806]
[1736440856198,2.6163,191.16,191.08,13.12249806]
[1736440856399,1.5232,191.19,191.08,13.12249806]
[1736440856797,2.6162,191.16,191.12,2.6167]
[1736440857096,1.5232,191.19,191.11,13.12249806]
[1736440857301,1.5232,191.19,191.15,2.6163]
[1736440857995,1.5232,191.19,191.13,2.6165]
[1736440858901,1.5232,191.19,191.11,13.12249806]
[1736440859201,1.5232,191.19,191.12,2.6167]
[1736440860500,1.5232,191.19,191.11,2.6169]
[1736440860798,13.12249806,191.17,191.09,9.70208988]
[1736440861908,13.12249806,191.17,191.05,13.12249806]
[1736440862707,2.6168,191.12,191.05,13.12249806]
[1736440862908,13.12249806,191.17,191.05,13.12249806]
[1736440863110,2.6166,191.13,191.09,2.6171]
[1736440863308,1.5222,191.18,191.08,13.12249806]
[1736440864101,2.6165,191.15,191.11,2.6168]
[1736440864409,1.5232,191.19,191.11,13.12249806]
[1736440864660,2.6157,191.2,191.16,2.6161]
[1736440864909,27.4107247,191.24,191.14,13.12249806]
[1736440865304,3.1253,191.24,191.14,13.12249806]
[1736440867202,13.12249806,191.23,191.11,1.5062]
[1736440867706,13.12249806,191.2,191.1,13.12249806]
[1736440868415,2.6163,191.16,191.11,2.6168]
[1736440869212,2.6164,191.15,191.11,2.6168]
[1736440869512,2.6164,191.15,191.12,2.6167]
[1736440869709,2.6162,191.16,191.12,2.6167]
[1736440871714,2.6166,191.14,191.1,2.617]
[1736440872104,13.12249806,191.18,191.1,2.617]
[1736440872314,13.12249806,191.18,191.06,14.72779806]
[1736440872513,1.5902,191.17,191.06,14.72779806]
[1736440872816,1.5902,191.17,191.09,13.12249806]
[1736440873013,2.6162,191.17,191.14,2.6164]
[1736440873205,1.5738,191.23,191.12,13.12249806]
[1736440873714,2.6155,191.22,191.13,1.5206]
[1736440874022,1.605,191.24,191.15,13.12249806]
[1736440874322,4.2202,191.24,191.2,2.6155]
[1736440874414,1.605,191.24,191.2,2.6155]
[1736440875018,2.6153,191.23,191.19,2.6158]
[1736440878719,2.6155,191.22,191.19,2.6158]
[1736440878917,2.6155,191.22,191.15,13.12249806]
[1736440879323,1.605,191.24,191.18,2.6159]
[1736440879542,2.6156,191.21,191.18,2.6159]
[1736440879716,1.605,191.24,191.15,13.12249806]
[1736440879911,14.72749806,191.24,191.14,1.5116]
[1736440880116,14.72749806,191.24,191.13,1.5206]
[1736440880516,14.72749806,191.24,191.15,2.6163]
[1736440880921,1.605,191.24,191.13,1.5206]
[1736440881223,2.6157,191.2,191.13,1.5206]
[1736440881422,1.605,191.24,191.13,1.5206]
[1736440881723,2.6155,191.22,191.13,1.5206]
[1736440882022,2.6155,191.22,191.18,2.6158]
[1736440882216,1.605,191.24,191.18,2.6158]
[1736440882217,2.6156,191.21,191.18,2.6158]
[1736440882721,2.6154,191.22,191.19,2.6157]
[1736440884521,2.6158,191.19,191.13,1.5206]
[1736440885024,13.12249806,191.18,191.06,13.12249806]
[1736440885218,2.6167,191.13,191.06,13.12249806]
[1736440885519,2.6167,191.13,191.09,2.6171]
[1736440885723,2.6167,191.13,191.06,13.12249806]
[1736440885919,13.12249806,191.21,191.06,13.12249806]
[1736440886221,13.12249806,191.21,191.11,2.6168]
[1736440886422,2.616,191.18,191.09,13.12249806]
[1736440886623,13.12249806,191.21,191.11,2.6169]
[1736440887122,13.12249806,191.21,191.13,2.6166]
[1736440887634,2.616,191.18,191.14,2.6165]
[1736440888028,4.9,191.23,191.12,13.12249806]
[1736440888427,4.9,191.23,191.15,13.12249806]
[1736440888923,2.6156,191.21,191.17,2.616]
[1736440889325,4.9,191.23,191.15,13.12249806]
[1736440889528,2.6158,191.2,191.16,2.6161]
[1736440889823,2.6158,191.2,191.13,3.0445]
[1736440890018,4.9,191.23,191.13,3.0445]
[1736440890617,2.6156,191.21,191.17,2.6161]
[1736440891122,2.6157,191.2,191.16,2.6162]
[1736440891619,2.6159,191.19,191.15,2.6163]
[1736440892526,2.6156,191.21,191.15,2.6163]
[1736440892729,4.9,191.23,191.15,2.6163]
[1736440892918,13.12249806,191.21,190.93,174.37344488]
[1736440893122,2.6165,191.14,191.07,13.12249806]
[1736440895031,2.6165,191.14,191.06,1.5441]
[1736440895032,13.12249806,191.21,191.1,13.12249806]
[1736440895341,13.12249806,191.17,191.05,13.12249806]
[1736440895531,2.6166,191.14,191.08,2.6172]
[1736440895724,13.12249806,191.17,191.05,13.12249806]
[1736440896328,2.6168,191.12,191.09,2.6171]
[1736440897923,13.12249806,191.13,190.91,87.07547916]
[1736440898136,13.12249806,191.13,190.98,13.12249806]
[1736440898437,2.6175,191.07,191.0,2.6184]
[1736440898636,13.12249806,191.13,191.01,13.12249806]
[1736440899032,2.6172,191.1,191.05,2.6176]
[1736440899334,2.6172,191.1,191.02,1.5605]
[1736440899560,13.12249806,191.13,191.02,1.5605]
[1736440900235,2.6174,191.08,191.03,2.6179]
[1736440901032,2.6174,191.08,191.04,2.6178]
[1736440901232,13.12249806,191.14,191.02,14.68299806]
[1736440901433,2.6175,191.07,191.02,14.68299806]
[1736440901828,2.6171,191.1,191.05,2.6177]
[1736440902036,13.12249806,191.14,191.02,14.68299806]
[1736440902735,13.12249806,191.14,191.06,2.6175]
[1736440902936,3.1874,191.16,191.05,13.12249806]
[1736440903237,13.12249806,191.19,191.08,13.12249806]
[1736440903431,8.30391713,191.2,191.11,13.12249806]
[1736440903632,1.5297,191.2,191.11,13.12249806]
[1736440904034,2.6162,191.17,191.11,13.12249806]
[1736440904847,2.6162,191.16,191.12,2.6167]
[1736440905233,3.0678,191.2,191.08,13.12249806]
[1736440905436,13.12249806,191.19,191.08,13.12249806]
[1736440905639,13.12249806,191.19,191.05,13.12249806]
[1736440905936,13.12249806,191.16,191.03,7.9672]
[1736440906339,16.19029806,191.2,191.03,7.9672]
[1736440906640,16.19029806,191.2,191.06,13.12249806]
[1736440906840,2.6166,191.14,191.09,2.6172]
[1736440907738,16.19029806,191.2,191.09,2.6172]
[1736440908049,16.19029806,191.2,191.03,7.9672]
[1736440908233,13.12249806,191.15,191.03,7.9672]
[1736440908437,2.6172,191.09,191.04,2.6177]
[1736440909034,2.6173,191.08,191.04,2.6177]
[1736440909239,13.12249806,191.15,191.04,2.6177]
[1736440910244,2.6174,191.08,191.04,2.6177]
[1736440911340,13.12249806,191.15,191.03,3.0672]
[1736440911541,13.12249806,191.15,191.05,2.6177]
[1736440912039,2.6173,191.09,191.05,2.6177]
[1736440914467,1.4868,191.14,190.88,82.61339178]
[1736440914652,13.12249806,191.08,190.96,14.74559806]
[1736440915151,2.6181,191.03,190.98,2.6186]
[1736440915646,2.6182,191.02,190.98,2.6186]
[1736440916439,2.6186,190.99,190.96,17.36449806]
[1736440916640,2.6186,190.99,190.96,14.74559806]
[1736440917750,1.4854,191.06,190.97,62.03901857]
[1736440917751,2.6184,191.01,190.97,62.03901857]
[1736440918446,1.4854,191.06,190.97,59.42021857]
[1736440918844,13.12249806,191.11,190.99,13.12249806]
[1736440920152,2.6177,191.05,190.99,13.12249806]
[1736440921151,2.6177,191.05,191.01,2.6182]
[1736440921747,1.6052,191.12,191.02,13.12249806]
[1736440921945,1.6052,191.12,191.05,13.12249806]
[1736440922143,142.01101735,191.16,191.05,13.12249806]
[1736440922451,2.6169,191.11,191.07,2.6174]
[1736440922748,13.12249806,191.14,191.03,1.4943]
[1736440922951,13.12249806,191.14,190.99,13.12249806]
[1736440922952,3.099,191.13,190.99,13.12249806]
[1736440923152,3.099,191.13,191.02,13.12249806]
[1736440923646,2.6172,191.1,191.05,2.6177]
[1736440924052,2.6172,191.1,191.07,2.6174]
[1736440924458,14.75189806,191.17,191.07,2.6174]
[1736440924949,2.617,191.11,191.07,2.6174]
[1736440925548,2.6167,191.13,191.05,13.12249806]
[1736440926145,2.6167,191.13,191.09,2.6171]
[1736440927254,14.75189806,191.17,191.02,4.9]
[1736440927446,2.6173,191.09,191.05,2.6177]
[1736440927956,2.6173,191.09,191.02,4.9]
[1736440928554,2.6171,191.1,191.02,4.9]
[1736440929155,2.6171,191.1,191.07,2.6174]
[1736440930262,13.12249806,191.14,191.04,13.12249806]
[1736440931263,2.6172,191.09,191.06,2.6175]
[1736440931652,2.6169,191.11,191.07,2.6174]
[1736440931959,1.6294,191.17,191.07,13.12249806]
[1736440933048,2.6166,191.14,191.11,2.6169]
[1736440933355,1.6294,191.17,191.11,2.6169]
[1736440933661,2.6165,191.14,191.08,1.5203]
[1736440934358,2.6165,191.14,191.1,2.6169]
[1736440934755,2.6165,191.14,191.09,2.6171]
[1736440934958,2.6165,191.14,191.08,1.5203]
[1736440935360,2.6165,191.14,191.1,2.6169]
[1736440935549,2.6165,191.14,191.08,1.5203]
[1736440935954,2.6163,191.16,191.08,1.5203]
[1736440936156,2.6163,191.16,191.1,13.12249806]
[1736440937456,2.6163,191.16,191.12,2.6166]
[1736440937959,1.6153,191.21,191.1,13.12249806]
[1736440938253,1.6327,191.24,191.13,13.12249806]
[1736440938459,2.6156,191.21,191.18,2.6159]
[1736440940051,2.6154,191.22,191.19,2.6158]
[1736440940558,2.615,191.26,191.22,2.6153]
[1736440940758,4.5798,191.31,191.19,13.12249806]
[1736440940982,3.0579,191.31,191.22,13.12249806]
[1736440941362,166.2911211,191.34,191.27,2.6147]
[1736440941654,166.2911211,191.34,191.22,13.12249806]
[1736440942164,13.12249806,191.35,191.22,13.12249806]
[1736440942355,2.6143,191.3,191.26,2.6147]
[1736440942560,13.12249806,191.35,191.22,13.12249806]
[1736440943662,2.6146,191.28,191.23,2.6151]
[1736440943861,2.6146,191.28,191.22,13.12249806]
[1736440944063,13.12249806,191.35,191.22,13.12249806]
[1736440945211,2.6145,191.29,191.22,13.12249806]
[1736440946269,2.6145,191.29,191.24,2.6151]
[1736440946463,2.6146,191.28,191.24,2.6151]
[1736440947269,2.6145,191.29,191.25,2.615]
[1736440947475,13.12249806,191.35,191.22,13.12249806]
[1736440947678,13.12249806,191.35,191.25,13.12249806]
[1736440948476,2.614,191.32,191.28,2.6145]
[1736440948678,13.12249806,191.35,191.22,13.12249806]
[1736440949408,2.614,191.33,191.28,2.6145]
[1736440949580,13.12249806,191.35,191.22,13.12249806]
[1736440949773,13.12249806,191.35,191.21,9.69796408]
[1736440949970,13.12249806,191.35,191.23,13.12249806]
[1736440950174,2.6143,191.3,191.23,13.12249806]
[1736440950371,3.0579,191.36,191.23,13.12249806]
[1736440950576,3.0579,191.36,191.28,13.12249806]
[1736440950780,1.5756,191.36,191.28,13.12249806]
[1736440951080,13.12249806,191.4,191.28,13.12249806]
[1736440951479,3.0771,191.41,191.31,13.12249806]
[1736440951880,2.6133,191.37,191.31,13.12249806]
[1736440952275,3.0771,191.41,191.31,13.12249806]
[1736440952680,1.5393,191.41,191.34,13.12249806]
[1736440953473,1.5999,191.45,191.34,13.12249806]
[1736440953743,2.6129,191.41,191.37,2.6133]
[1736440954285,2.6127,191.42,191.37,2.6133]
[1736440954485,1.5999,191.45,191.36,2.6134]
[1736440954700,1.5999,191.45,191.31,13.12249806]
[1736440954701,13.12249806,191.43,191.31,13.12249806]
[1736440954980,2.6133,191.38,191.33,2.6138]
[1736440955180,2.6133,191.38,191.31,13.12249806]
[1736440955378,13.12249806,191.43,191.31,13.12249806]
[1736440955575,2.6127,191.42,191.38,2.6131]
[1736440956681,1.5999,191.45,191.3,13.12249806]
[1736440956880,13.12249806,191.43,191.3,13.12249806]
[1736440957282,13.12249806,191.43,191.36,2.6135]
[1736440957482,1.5999,191.45,191.36,2.6135]
[1736440958000,1.4873,191.46,191.36,13.12249806]
[1736440958279,2.6124,191.45,191.41,2.6128]
[1736440958485,1.581,191.5,191.39,13.12249806]
[1736440958875,14.70349806,191.5,191.36,13.12249806]
[1736440959076,13.12249806,191.47,191.36,13.12249806]
[1736440959283,13.12249806,191.47,191.35,3.0571]
[1736440959480,13.12249806,191.44,191.35,1.5281]
[1736440959686,13.12249806,191.44,191.33,13.12249806]
[1736440959879,1.5709,191.43,191.34,2.6136]
[1736440960480,2.6131,191.39,191.35,2.6136]
[1736440960685,1.5709,191.43,191.33,13.12249806]
[1736440961185,1.5709,191.43,191.38,2.6132]
[1736440961377,1.5709,191.43,191.33,20.97712758]
[1736440961886,2.613,191.4,191.36,2.6134]
[1736440962083,1.5709,191.43,191.29,6.5281]
[1736440962084,1.5709,191.43,191.3,20.97712758]
[1736440962490,2.6131,191.39,191.3,20.97712758]
[1736440962980,2.6131,191.39,191.3,25.87712758]
[1736440963374,2.6131,191.39,191.35,2.6135]
[1736440963579,2.6131,191.39,191.3,25.87712758]
[1736440964485,2.613,191.4,191.36,2.6134]
[1736440965993,2.6128,191.41,191.37,2.6132]
[1736440966383,20.97712758,191.48,191.33,20.97712758]
[1736440966583,2.6126,191.43,191.33,20.97712758]
[1736440967080,2.6124,191.44,191.4,2.6128]
[1736440967281,2.6124,191.44,191.36,20.97712758]
[1736440967686,2.6124,191.44,191.4,2.6128]
[1736440968282,1.5512,191.49,191.42,2.6126]
[1736440968988,1.5512,191.49,191.37,1.5551]
[1736440969616,2.6128,191.42,191.38,2.6131]
[1736440969991,2.6128,191.42,191.37,1.5551]
[1736440970192,2.6126,191.43,191.4,2.6129]
[1736440970381,1.5512,191.49,191.37,1.5551]
[1736440970785,2.6122,191.46,191.42,2.6125]
[1736440971085,1.5512,191.49,191.37,3.0441]
[1736440971980,2.6126,191.43,191.39,2.613]
[1736440972182,2.6126,191.43,191.37,3.0441]
[1736440972389,2.6122,191.46,191.39,2.613]
[1736440972581,1.5512,191.49,191.39,2.613]
[1736440974194,2.6128,191.42,191.39,2.613]
[1736440976084,20.97712758,191.48,191.28,1.632]
[1736440976289,20.97712758,191.45,191.31,1.5414]
[1736440976889,20.97712758,191.45,191.35,2.6135]
[1736440977290,20.97712758,191.45,191.31,1.5414]
[1736440977491,2.6131,191.39,191.36,2.6134]
[1736440980395,2.6129,191.41,191.38,2.6131]
[1736440980697,143.51341735,191.47,191.33,20.97712758]
[1736440981000,2.6125,191.43,191.4,2.6129]
[1736440981398,2.6125,191.43,191.38,13.10646234]
[1736440981594,2.6125,191.43,191.39,2.613]
[1736440981897,2.6125,191.43,191.38,13.10646234]
[1736440982398,1.5512,191.49,191.38,13.10646234]
[1736440982793,1.5512,191.49,191.39,3.0872]
[1736440983190,2.612,191.47,191.44,2.6124]